Cogmind - Beta 10.2 @@@ ROGUE MODE // 2021.11.25 @ 22:23:58 Player: Xcalibur Result: Destroyed by as-36258 with Assembled Heavy Rifle Performance ------------- Evolutions (0) 0 Regions Visited (2) 400 Robots Destroyed (19) 95 Value Destroyed (427) 427 Prototype IDs (0) 0 Alien Tech Used (0) 0 Bonus (0) 0 TOTAL SCORE: 922 Bonus ------- None Cogmind --------- Core Integrity 0/250 Matter 253/300 Energy 55/100 System Corruption 8% Temperature Cool (26) Movement Core (50) Location -10/Mines Parts ------- > --- POWER (1) -------- (None) > --- PROPULSION (2) --- (None) > --- UTILITY (2) ------ (None) > --- WEAPON (2) ------- (None) > --- INVENTORY (4) ---- Small Storage Unit Improved Targeting Computer Light Armor Plating Light Armor Plating Peak State ------------ > --- POWER ------------ Ion Engine > --- PROPULSION ------- Improved Treads Wheel > --- UTILITY ---------- Small Storage Unit Small Storage Unit > --- WEAPON ----------- Autogun Autogun > --- INVENTORY -------- Light Ion Engine Light Treads Wheel Improved Targeting Computer Light Armor Plating Light Armor Plating Autogun Autogun [Rating: 11] Favorites ----------- Power Ion Engine Engine Ion Engine Propulsion Wheel Treads Light Treads Wheel Wheel Utility Small Storage Unit Device Shock Absorption System Storage Small Storage Unit Processor Targeting Computer Weapon Autogun Energy Gun Medium Laser Ballistic Gun Autogun Launcher Mini Grenade Launcher Build | -11 -10 -10 ------- Run | Scr Mat Min Slots Evolved . | . . . Power . | . . . Propulsion . | . . . Utility . | . . . Weapon . | . . . Parts Attached 32 | 6 17 9 Power 3 | 1 1 1 Engine 3 | 1 1 1 Core . | . . . Reactor . | . . . Propulsion 18 | 2 11 5 Treads 8 | . 5 3 Leg . | . . . Wheel 10 | 2 6 2 Hover . | . . . Flight . | . . . Utility 4 | 1 2 1 Device 1 | . . 1 Storage 2 | 1 1 . Processor 1 | . 1 . Hackware . | . . . Protection . | . . . Artifact . | . . . Weapon 7 | 2 3 2 Energy Gun 2 | 1 1 . Energy Cannon . | . . . Ballistic Gun 4 | 1 2 1 Ballistic Cannon . | . . . Launcher 1 | . . 1 Special Weapon . | . . . Impact Weapon . | . . . Slashing Weapon . | . . . Piercing Weapon . | . . . Special Melee Weapon . | . . . Unidentified Prototypes . | . . . Parts Lost 12 | . 2 10 Power 3 | . 1 2 Propulsion 4 | . . 4 Utility 1 | . . 1 Weapon 4 | . 1 3 Highest Loss Streak 8 | . 2 8 Average Slot Usage (%) 95 | . 99 86 Engine 13 | . 14 13 Treads 4 | . 4 5 Wheel 21 | . 23 16 Storage 24 | . 23 26 Processor 2 | . 4 . Energy Gun 7 | . 10 . Ballistic Gun 19 | . 17 25 Naked Turns 1 | . . 1 Heaviest Build 19 | 12 19 19 Greatest Support 40 | 26 40 20 Greatest Overweight (x) 1 | . . 1 Average Overweight (x) . | . . . Largest Inventory Capacity 8 | 6 8 8 Average Capacity 7 | 4 7 7 Most Carried 8 | 4 8 8 Average Carried 6 | 2 6 7 Final Capacity 8 | 6 8 4 Final Carried 8 | 4 8 4 Class Distribution -------------------- 100% | Mutant Dominant Class ---------------- Mutant | -10/Materials Mutant | -10/Mines Resources | -11 -10 -10 ----------- Run | Scr Mat Min Matter Collected 611 | 261 210 140 Remotely . | . . . Salvage Created 668 | 80 425 163 Parts 43 | 2 32 9 Haulers Intercepted 1 | . 1 . Recyclers Shooed 2 | . 2 . Parts Field Recycled . | . . . Retrieved Matter . | . . . Parts Self-Destructed . | . . . Prevented . | . . . Kills | -11 -10 -10 ------- Run | Scr Mat Min Combat Hostiles Destroyed 18 | . 10 8 Guns 18 | . 10 8 Classes Destroyed 7 | 1 4 2 Worker 2 | . 2 . Hauler 1 | . 1 . Recycler 1 | 1 . . Swarmer 6 | . 3 3 Grunt 7 | . 7 . Demolisher 2 | . . 2 Assembled 3 | . . 3 Best Kill Streak 6 | 1 6 3 Combat Bots Only 5 | . 5 3 Max Kills in Single Turn 2 | 1 1 2 Gunslinging 1 | . . 1 Exploded . | . . . Melee . | . . . Uniques/NPCs Destroyed . | . . . Combat | -11 -10 -10 -------- Run | Scr Mat Min Damage Taken 1344 | . 364 980 Core 251 | . 78 173 Absorbed by Shields . | . . . Core Remaining (%) 100 | 100 . . Volleys Fired 57 | 1 36 20 Largest 2 | 2 2 2 Hottest 70 | 70 70 46 Shots Fired 111 | 2 71 38 Gun 111 | 2 71 38 Cannon . | . . . Launcher . | . . . Special . | . . . Kinetic 77 | 1 38 38 Thermal 34 | 1 33 . Explosive . | . . . Electromagnetic . | . . . Robot Hit Streak 10 | 2 10 7 Robot Miss Streak 4 | . 3 4 Penetration Max . | . . . Secondary Targets 6 | . 3 3 Max Gunslinging Chain 1 | . 1 1 Shots Hit Robots 74 | 2 47 25 Core Hits 39 | 2 23 14 Critical Hits . | . . . Critical Kills . | . . . Critical Parts Destroyed . | . . . Melee Attacks . | . . . Impact . | . . . Slashing . | . . . Piercing . | . . . Sneak Attacks . | . . . Combat Hostiles . | . . . Follow-up Attacks . | . . . Damage Inflicted 894 | 21 532 341 Guns 891 | 21 532 338 Cannons . | . . . Explosions . | . . . Melee . | . . . Ramming 3 | . . 3 Kinetic 544 | 9 197 338 Thermal 347 | 12 335 . Explosive . | . . . Electromagnetic . | . . . Impact . | . . . Slashing . | . . . Piercing . | . . . Highest Corruption 8 | . . 8 Average Corruption 8 | . . 8 Corruption Purged . | . . . Overload Shots . | . . . Overflow Damage . | . . . Projectiles . | . . . Explosions . | . . . Melee . | . . . Knockbacks . | . . . Impact . | . . . Kinetic . | . . . Secondary . | . . . Self-Inflicted Damage 1 | . . 1 Shots . | . . . Rammed 1 | . . 1 Targets Rammed 1 | . . 1 Kicked . | . . . Crushed . | . . . Highest Temperature 212 | 30 212 62 Average Temperature 62 | 18 82 16 Received Heat Transfer 370 | . 150 220 Siege Activations . | . . . Robots Corrupted . | . . . Combat Hostiles . | . . . Parts Fried . | . . . Impact Corruptions . | . . . Robots Melted . | . . . Combat Hostiles . | . . . Parts Melted 1 | . 1 . Heat Transferred 953 | 37 916 . Parts Sabotaged . | . . . Parts Stolen . | . . . Parts Stripped . | . . . Power Chain Reactions . | . . . Missiles Intercepted . | . . . Alert | -11 -10 -10 ------- Run | Scr Mat Min Peak Influence 293 | 5 293 229 Initial 114 | . 3 114 Average 156 | . 180 185 Maximum Alert Level 1 | . 1 1 Low Security (%) 64 | 100 55 66 Level 1 35 | . 44 33 Level 2 . | . . . Level 3 . | . . . Level 4 . | . . . Level 5 . | . . . High Security . | . . . Max Security . | . . . Squads Dispatched 1 | . 1 . Investigation . | . . . Extermination . | . . . Reinforcement 1 | . 1 . Assault . | . . . Garrison . | . . . Intercept . | . . . Construction Impeded . | . . . Haulers Reinforced . | . . . Stealth | -11 -10 -10 --------- Run | Scr Mat Min Distress Signals 4 | . 4 . Communications Jammed . | . . . Distress Signals . | . . . Times Spotted 37 | . 15 22 Peak Tracking Total 10 | . 7 10 Tactical Retreats . | . . . Traps | -11 -10 -10 ------- Run | Scr Mat Min Traps Triggered . | . . . Indirectly . | . . . Trap Hack Attempts . | . . . Triggered . | . . . Disarmed . | . . . Reprogrammed . | . . . Reused . | . . . Traps Extracted . | . . . Installed . | . . . Triggered . | . . . Machines | -11 -10 -10 ---------- Run | Scr Mat Min Machines Disabled . | . . . Max in Single Turn . | . . . Machines Sabotaged . | . . . Garrisons Compromised . | . . . Overloaded Fab Kills . | . . . Fab Network Shutdowns . | . . . Hacking | -11 -10 -10 --------- Run | Scr Mat Min Machines Accessed 3 | . 3 . Terminals 2 | . 2 . Fabricators . | . . . Repair Stations . | . . . Recycling Units 1 | . 1 . Scanalyzers . | . . . Garrison Access . | . . . Total Hacks 6 | . 6 . Successful 3 | . 3 . Failed 3 | . 3 . Catastrophic . | . . . Database Lockouts . | . . . Manual 2 | . 2 . Terminals 5 | . 5 . Fabricators . | . . . Repair Stations . | . . . Recycling Units 1 | . 1 . Scanalyzers . | . . . Garrison Access . | . . . Terminal Hacks 1 | . 1 . Zone Layout 1 | . 1 . Fabricator Hacks . | . . . Repair Station Hacks . | . . . Recycling Unit Hacks 1 | . 1 . Retrieve Components 1 | . 1 . Scanalyzer . | . . . Garrison Access Hacks . | . . . Unauthorized Hacks 1 | . 1 . Terminals 1 | . 1 . Botnet 1 | . 1 . Fabricators . | . . . Repair Stations . | . . . Recycling Units . | . . . Scanalyzers . | . . . Garrison Access . | . . . Data Cores Recovered . | . . . Used . | . . . Hacking Detections 3 | . 3 . Full Trace Events . | . . . Feedback Events . | . . . Feedback Blocked . | . . . Robot Schematics Acquired . | . . . Robots Built . | . . . Matter . | . . . Time . | . . . Total Robot Build Rating . | . . . Part Schematics Acquired . | . . . Parts Built . | . . . Matter . | . . . Time . | . . . Total Part Build Rating . | . . . Parts Repaired . | . . . Time . | . . . Parts Recycled . | . . . Recycled Matter . | . . . Retrieved Matter . | . . . Retrieved Components 3 | . 3 . Parts Scanalyzed . | . . . Part Schematics Acquired . | . . . Parts Damaged . | . . . Bothacking | -11 -10 -10 ------------ Run | Scr Mat Min Used RIF Installer . | . . . Robots Hacked . | . . . Non-combat . | . . . Combat . | . . . Robot Hacks Applied . | . . . Relay Couplers Released . | . . . Robots Rewired . | . . . Allies Hacked . | . . . Hacks Repelled . | . . . Allies | -11 -10 -10 -------- Run | Scr Mat Min Total Allies . | . . . Largest Group . | . . . Highest-Rated Group . | . . . Highest-Rated Ally . | . . . Total Orders . | . . . Ally Attacks . | . . . Total Damage . | . . . Kills . | . . . Allies Corrupted . | . . . Allies Melted . | . . . Intel | -11 -10 -10 ------- Run | Scr Mat Min Robot Analysis Total . | . . . Derelict Logs Recovered . | . . . Drone Launches . | . . . Drone Recoveries . | . . . Exploration | -11 -10 -10 ------------- Run | Scr Mat Min Turns Passed 549 | 78 331 140 Spaces Moved 387 | 69 230 88 Core 2 | 2 . . Treads 4 | . 4 . Legs . | . . . Wheels 381 | 67 226 88 Hover . | . . . Flight . | . . . Fastest Speed 50 | 50 80 80 Average Speed 85 | 91 84 81 Slowest Speed 160 | 100 160 90 Overloaded Moves . | . . . Propulsion Burnouts . | . . . Robots Hopped . | . . . Cave-ins Triggered . | . . . Exploration Rate (%) 25 | 3 46 26 Regions Visited 2 Branch Regions 1 Pre-discovered Areas . | . . . Known Exits Taken . | . . . Unknown Exits Taken 2 | 1 1 . Scrap Searched . | . . . Spaces Dug . | . . . Terrain Destroyed . | . . . Melee . | . . . Projectile . | . . . AOE . | . . . Terrain Rammed . | . . . Walls Destroyed . | . . . Machines Disabled . | . . . Actions | -11 -10 -10 --------- Run | Scr Mat Min Total 501 | 79 298 124 Wait 3 | . . 3 Move 385 | 68 229 88 Hop . | . . . Pick Up 15 | 4 9 2 Fast Attach 10 | 6 4 . Attach 7 | . 2 5 Detach . | . . . Swap 15 | . 11 4 Drop 8 | . 7 1 Fire 57 | 1 36 20 Melee . | . . . Ram 1 | . . 1 Kick . | . . . Crush . | . . . Escape Stasis . | . . . Rewire . | . . . Trap . | . . . Miscellaneous . | . . . Route ------- -11/Scrapyard -10/Materials (discovered 3 exits: [*Mat] / [*Min x2]) -10/Mines (discovered 1 exit: [*Mat]) History --------- Turn | Location | Event 7 | -11/Scrapyard | Discovered new exit (range 16) 79 | -11/Scrapyard | Entered Materials 228 | -10/Materials | Discovered new exit (range 8) 351 | -10/Materials | Build established: Mutant 378 | -10/Materials | Discovered new exit (range 4) 386 | -10/Materials | Discovered new exit (range 15) 410 | -10/Materials | Entered Mines 421 | -10/Mines | Discovered new exit (range 9) 461 | -10/Mines | Assembled infested the area 466 | -10/Mines | Assisted by a Guerilla fighting off Assembled 486 | -10/Mines | Core integrity fell below 50% 549 | -10/Mines | Core integrity fell below 20% 550 | -10/Mines | Destroyed by as-36258 with Assembled Heavy Rifle Last Messages --------------- 00537_ Imp. Treads destroyed. 00537_ System corrupted by crushing effect (+3). 00537_ System corrupted by crushing effect (+5). 00537_ Autogun destroyed. 00539_ U-05 Engineer lays Concrete. 00539_ Destroyed Asb. Hover Unit. 00540_ U-05 Engineer lays Concrete. 00542_ Mni. Grenade Launcher destroyed. 00543_ U-05 Engineer builds a Wall. 00545_ as-89576 destroyed. 00545_ Switching to secondary target: as-95400. 00545_ Lgt. Ion Engine destroyed. 00545_ Autogun destroyed. 00546_ Acquired 18 matter. 00547_ U-05 Engineer lays Concrete. 00547_ Autogun severed. 00548_ Shock Absorption System destroyed. 00548_ U-05 Engineer builds a Wall. 00549_ Dropped Sml. Storage Unit. 00550_ Slammed into as-95400. Map ----- +----------------------------------------------------+ | ???????????????????????????????????????? | | ???????????????????????????????????????? | | ???????????????????????????????????????? | | ???????????????????????????????????????? | | ???????????????????????????????????????? | | ???????????????????????????????????????? | | ???????????????????????????????????????? | | ???????????????????????????????????????? | | ???????????????????????????????????????? | | ???????????????????????????????????????? | | ?????????????????????? ????????????????? | | ????????????????????## #??????????????? | | ???????????????????? % #??????????????? | | ??????????????????? ##?#! ?????????? | | ??????????????????? ## ???????? | | ?????????????????? ??????? | | ??????????????????? ??????? | | ??????????????????? ??????? | | ???????????????????? #??????? | | ???????????????????? #???????? | | ?????????????????#### #???????? | | ??????????????#### ?????????? | | ????????????### # ?????????? | | ???????????## # ## # ## #?????????# | | ???????????# ## # ## #???####?## | | ???????????#[!a@a u ### #??## ### | | ???????????##a%###%## ! ## #?## | | ????????????# # = ## ### | | ????????????# % # ! ## | | ????????????# =# %% | | ????????????##%## ### ## =% | | ?????????????#%###??## ##### ** | | ?????????????# #?????##### ##???# [= | | ?????????????#%#????????# ##???## | | ?????????????# #????????# ##????# < | | ?????????????# "????????## ##?????# | | ?????????????# #?????????####??????# | | ?????????????# #???????????????????# | | ?????????????# #???????????????????# ## | | ?????????????# #???????????????????# #? | | ?????????????? ???????????????????## ?? | | ?????????????? ??????????????????## ## | | ?????????????? ??????????????????# | | ?????????????? ??????????????????# | | ??????????????#??????????????????## | | ??????????????????????????????????## | | ???????????????????????????????????# | | ???????????????????????????????????## # | | ????????????????????????????????????###? | | ???????????????????????????????????????? | +----------------------------------------------------+ Best States ------------- Heat Dissipation 25 Energy Generation 10 Energy Capacity 250 Matter Stores 300 Matter Capacity 300 Sight Range 16 Terrain Scan Density 10 Evasion (%) 44 Targeting Accuracy 5 Recoil Reduction 2 Item Schematics ----------------- None Robot Schematics ------------------ None Fabricated ------------ Nothing Alien Tech Used ----------------- None Achievements -------------- None Challenges ------------ None Game ------ Seed PropulsionSmallMultirail Manual? 0 Play Time 00:13:58 Cumulative 48.0 hours Start 2021.11.25 @ 22:10:37 End 2021.11.25 @ 22:23:58 Sessions 1 Manual Loads 0 Difficulty Rogue Special Mode None Game No. 12 Rogue 12 Adventurer 0 Explorer 0 Win Type - Total 2 Types 2/0/0/0/0/0/0/0/0 Lore% 22 Gallery% 36 Achievement% 35 Wizard Run 0 Options --------- ASCII 0 Keyboard 0 Movement Mouse Keybinds 0 Fullscreen 1 Font 18/Terminus Map View 76x50 Tactical HUD 1 Map Filters NONE Filters NONE Steam 1 RUN: fb773f78-6656-4c5b-897c-acec8b1220f4